Workbook

Sheet Home
C2: Version 2.000-RC2cd
C3: CritchCorp Computers Ltd
C5: Marketplace Quick Calculators
E7: This software will not work unless you have your security setting set correctly. If the buttons don't work, then go to: File --> Options --> Trust Center Click the Trust Center Settings Button Go to Macro Settings Select Enable VBA Macros... Tick the other two boxes if available Click OK Close Excel and reopen this file. DON'T FORGET to Unblock the file after download. Right click the file and tick the UNBLOCK box, click OK.
C9: Support:
B10: https://itforum.website
C19: © 2024 CritchCorp Computers Ltd
C20: CritchCorp Computers Ltd is a company registered in England and Wales. Registered number: 05928822. Registered address: 132-134 Great Ancoats Street, Manchester, M4 6DE (Official Documents Only). Support: support@cc-computers.com

Sheet TermsAndConditions (hidden)
C2: Software | D2: =Home!C2 -> Version 2.000-RC2cd
B3: Use at your own risk at the moment. No guarantees apply. Merchantability of this software is not guaranteed.
B5: This software is in Beta testing. It is not for general release and as such no guarantees apply at all.
M6: Serial Number: | O6: 0
B7: This software is intended for use a guide only. It does not gaurentee you will make a profit on every sale. It is to be used a guide only.
B8: It doe not take in to account other costs of business and other costs directly associated with each sale.
B9: There are other costs, such as Pay-Per-Click and other advertising fees that are not accounted for in this software.
B10: You must take these extra costs in to account yourself. If you can add a percentage to the unit costs, then you can easily do so.
B11: If you cannot then you must make provisions for these in some other way.
B12: By using this software you agree not hold us liable for any losses you may incude due to using the software.
B13: You also agree to not attempt to interfere with the code. Any attempt or actual changing of the code will invalidate the software and in such cases no warraty will be applied
B14: Further more, if you notice a glitch, or problem, then as a Beta tester, or a user of the Beta software, you are duty bound to report it ASAP.
B16: E&OE
B19: CritchCorp Computers Ltd

Sheet Menu (hidden)
B2: CritchCorp Computers Ltd
B6: Main Menu
B32: © 2024 CritchCorp Computers Ltd
B33: =Home!C2 -> Version 2.000-RC2cd

Sheet Help (hidden)
A19: Make sure you know your item catgory percentages. These are your responsibility to know. You canu use the Market Place Fees page to help you. If you are unsure then use the highest possible fee from that marketplace.
A20: Where the Marketplace settings (Options Page) have a value, this is usuallly the only value they have, but you can use this as the default for that marketplace. When you click the button it will automatically set that rate for you. You can still change it in the calulator.
A23: To use the Calculator
A25: First Select the Market Place or App you want to use, from the buttons on the left (marked 1 on the picture). Selecting the correct one is important as it will set up some feautres for that particular app or marketplace. For example setting it to Shopify will set the per transaction fee to £0.25, it will exclude VAT from that fee and it will set the category fee to 3.9%, as this is the most charged by the payment processors. (you can amend any of these as well. More about that later). Once you have selected your marketplace or app, you can enter your item specifc category fee, add fee as required (Marked as 2). The Foriegn fee and Charity fee are eBay specific but you can use if they are needed for other things. One has VAT and one does not, depending on what you are charged. On to 3 on the diagram and you should enter your cost price for the item. That is the entire cost including the post and packing import duty, etc that you paid (or will pay). 4 - There are 2 of these, you should use only one usually. The Postage column is for Royal Mail postage which does not include any VAT. The other is for courier who charge VAT (Including Royal Mail Business accounts). Then in 5 enter the sale price, 6 the amount your customer pays for delivery and 7 the quantity (not bundels, as they are usually one item and costed as such, this will multiply the cost and sale price by this number. Now head on over to number 8 and see if you are losing or profiting.
A34: This doesn't take in to account any other costs. If you know what margin must be added in order to cover your other costs, make sure you add it to the unit cost price, or as one of the other percentages if available.
A36: There are 3 calculators on the right side. The first is a calculates how much VAT to add: Enter the cost with out VAT and it will tell you how much it is with VAT. The second will remove the VAT. The third is to help with multibuy discounts. Put your sales price in and then use the discount amount in the calculator to see if you still make a profit or not. The OTher box can be used fro your own discount amount, other than the fix boxes.

Sheet Maintenance (hidden)
B2: This is the Maintenance page, there is nothing here for you, yet. Please return to the menu.
I6: Upgrade System Info
A7: Password Section | I7: Yes | K7: Check for Updates on Open (Recommended)
A8: Password1! | I8: No | K8: Automatically update the system on startup (Not Currently Available)
A9: 0 | C9: Install | D9: 0 | E9: 0 | K9: =Home!C2 -> Version 2.000-RC2cd | N9: =LEFT(K9,9) -> Version 2 | O9: =MID(K9,11,3) -> 000 | P9: =RIGHT(K9,9) -> 000-RC2cd | Q9: =N9&"-"&O9&P9 -> Version 2-000000-RC2cd
K11: Major Version | M11: =N9 -> Version 2
K12: Minor Version | M12: =O9 -> 000
K13: Build no. | M13: =P9 -> 000-RC2cd
B34: © 2024 CritchCorp Computers Ltd

Sheet Options (hidden)
A6: Current Button Settings | D6: Shopify
A7: Fixed Order Fee | B7: 0.25 | D7: Fixed Order Fee | E7: 0.25 | F7: Variable Fee | G7: 3.9 | H7: Per Item Fixed Fee
A8: VAT on FOF | B8: 0 | D8: VAT on FOF | E8: 0 | F8: Regulatory Fee | H8: Enforced Ad Fee %
A9: Regulatory Fee
A10: Per Item Fixed Fee | D10: OnBuy
A11: Low Order Value Threshold | D11: Fixed Order Fee | E11: 0.25 | F11: Variable Fee | G11: 15 | H11: Per Item Fixed Fee
A12: Low Order Value Amount | D12: VAT on FOF | E12: 1 | F12: Regulatory Fee | H12: Enforced Ad Fee %
D14: eBay
D15: Fixed Order Fee | E15: 0.3 | F15: Variable Fee | G15: 12.9 | H15: Per Item Fixed Fee | J15: Low Order Value Threshold | K15: 10 | L15: Top Rated Seller Discount % | M15: 10
D16: VAT on FOF | E16: 1 | F16: Regulatory Fee | G16: 0.35 | H16: Enforced Ad Fee % | J16: Low Order Value Amount | K16: 0.1
D18: WooCommerce
D19: Fixed Order Fee | E19: 0.35 | F19: Variable Fee | G19: 3.9 | H19: Per Item Fixed Fee
D20: Vat on FOF | E20: 1 | F20: Regulatory Fee | H20: Enforced Ad Fee %
D22: Amazon
D23: Fixed Order Fee | E23: 0.25 | F23: Variable Fee | H23: Per Item Fixed Fee
D24: VAT on FOF | E24: 1 | F24: Regulatory Fee | H24: Enforced Ad Fee %
D26: Vinted
D27: Fixed Order Fee | E27: 0.8 | F27: Variable Fee | G27: 8 | H27: Per Item Fixed Fee
D28: VAT on FOF | E28: 1 | F28: Regulatory Fee | H28: Enforced Ad Fee %
D30: Etsy
A31: © 2024 CritchCorp Computers Ltd | D31: Fixed Order Fee | E31: 0.2 | F31: Variable Fee | G31: 10.5 | H31: Per Item Fixed Fee | I31: 0.2
D32: VAT on FOF | E32: 0 | F32: Regulatory Fee | G32: 0.32 | H32: Enforced Ad Fee % | I32: 15
D34: TikTok Shop
D35: Fixed Order Fee | E35: 0 | F35: Variable Fee | G35: 9 | H35: Per Item Fixed Fee
D36: VAT on FOF | E36: 0 | F36: Regulatory Fee | H36: Enforced Ad Fee %
D38: Facebook Marketplace
D39: Fixed Order Fee | E39: 0.25 | F39: Variable Fee | G39: 3.9 | H39: Per Item Fixed Fee
D40: VAT on FOF | E40: 1 | F40: Regulatory Fee | H40: Enforced Ad Fee %

Sheet Calculator (hidden)
Q1: =Home!C2 -> Version 2.000-RC2cd
C2: Quick Calculator for market places
E3: Inc VAT | F3: Inc VAT | G3: INC VAT | K3: No-VAT | P3: 0-VAT | Q3: Inc-VAT
C4: Description | D4: Quantity | E4: Sale Price | F4: Delivery | G4: Total sale | H4: VAT | I4: Platform fee | J4: Promo fee | K4: Charity fee | L4: Foriegn fee | M4: Courier | N4: Unit Cost inc VAT | O4: Other cost | P4: POSTAGE | Q4: Total costs | R4: VAT Reclaim | S4: Profit/Loss
C5: With VAT | D5: 1 | E5: 1 | F5: 0 | G5: =(E5*D5+(F5)) -> 1 | H5: =G5-(G5/B8) -> 0.1666666667 | I5: =IF(Options!B8=0,(G5*(B10/100)+Options!B7)+(G5*(Options!B9)/100)+E10,((G5*(B10/100)+Options!B7+E10)+((G5*(B10/100)+Options!B7+E10+E10)*(B8-1))+((G5*(Options!B9/100))+((G5*(Options!B9/100))*(B8-1))))) -> 0.289 | J5: =IF(Options!B8=0,(G5*(B11/100)), ((G5*(B11/100))+((G5*(B11/100))*(B8-1)))) -> 0 | K5: =(G5*(B13/100)) -> 0 | L5: =IF(Options!B8=0,(G5*(B12/100)), ((G5*(B12/100))+((G5*(B12/100))*(B8-1)))) -> 0 | M5: =M6*B8 -> 0 | N5: =N6*B8 -> 0 | O5: =O6 -> 0 | P5: =P6 -> 0 | Q5: =SUM(H5:P5)-N5+(N5*D5) -> 0.4556666667 | R5: =(I7)+(J7)+(L7)+(M7)+(O7)+((N7)*D5) -> 0 | S5: =SUM((G5-Q5))+R5 -> 0.5443333333 | T5: Vat Registered - Use this
C6: No VAT | D6: =D5 -> 1 | E6: =E5/B8 -> 0.8333333333 | F6: =F5/B8 -> 0 | G6: =(E6*D6+(F6)) -> 0.8333333333 | H6: =G5-(G5/B8) -> 0.1666666667 | I6: =(G5*(B10/100)+Options!B7) -> 0.289 | J6: =(G5*(B11/100)) -> 0 | K6: =(G5*(B13/100)) -> 0 | L6: =(G5*(B12/100)) -> 0 | M6: 0 | N6: 0 | O6: 0 | P6: 0 | Q6: =SUM(I5:P5)-N5+(N5*D5) -> 0.289 | S6: =SUM((G6-Q6)) -> 0.5443333333 | T6: Not VAT registered - Use This
G7: =SUM(G5-G6) -> 0.1666666667 | I7: =I5-I6 -> 0 | J7: =J5-J6 -> 0 | L7: =L5-L6 -> 0 | M7: =M5-M6 -> 0 | N7: =N5-N6 -> 0 | Q7: =Q5-Q6 -> 0.1666666667 | R7: =SUM(I7:J7,L7:O7) -> 0
B8: =(B9/100)+1 -> 1.2
A9: VAT | B9: 20 | F9: Red in delivery value incates that there is a non zero value | M9: Mini Calculators
A10: Category Fee % | B10: 3.9 | C10: No. of Items | D10: 3 | E10: =SUM(D10*Options!B10) -> 0 | M10: Unit Cost VAT calculator
A11: Per Sale Ad Fee % | B11: 0 | C11: Enforced | M11: Qty | N11: Unit Cost | O11: VAT | P11: Total | Q11: Unit Total
A12: Foreign Sale % | B12: 0 | C12: Mostly for eBay but you use for anything that you need it for (Inc VAT) | M12: 1 | N12: 1 | O12: =(N12*M12)*(B8-1) -> 0.2 | P12: =(N12*M12)+O12 -> 1.2 | Q12: =N12*M12 -> 1
A13: Charity % (No VAT) | B13: 0 | C13: Mostly for eBay but you use for anything that you need it for (Withoutl VAT)
A14: Shopify | B14: 1 | M14: Unit Cost VAT Remover
A15: OnBuy | B15: 0 | M15: Qty | N15: Unit cost | O15: VAT | P15: Total
A16: eBay | B16: 0 | M16: 1 | N16: 1 | O16: =(N16*M16)-(N16*M16)/B8 -> 0.1666666667 | P16: =(N16*M16)/B8 -> 0.8333333333
A17: WooCommerce | B17: 0
A18: Amazon | B18: 0 | M18: Discount Calculator
A19: Vinted | B19: 0 | O19: Discount Percentage Value | U19: Other
A20: Etsy | B20: 0 | D20: Margin calculator | F20: When you add a percentage you canot use the same percentage | M20: Qty | N20: Sale price inc VAT | O20: 0.05 | P20: 0.1 | Q20: 0.15 | R20: 0.2 | S20: 0.25 | T20: 0.3 | U20: 50
A21: TikTok Shop | B21: 0 | D21: Base Cost | E21: Add % | F21: Total | G21: Amount £ | H21: % Available | J21: 42.858% = 30% | M21: 1 | N21: 1 | O21: =N21-(N21*(5/100)) -> 0.95 | P21: =$N$21-($N$21*(10/100)) -> 0.9 | Q21: =$N$21-($N$21*(15/100)) -> 0.85 | R21: =$N$21-($N$21*(20/100)) -> 0.8 | S21: =$N$21-($N$21*(25/100)) -> 0.75 | T21: =$N$21-($N$21*(30/100)) -> 0.7 | U21: =$N$21-($N$21*(U20/100)) -> 0.5
A22: Facebook Marketplace | B22: 0 | D22: 30 | E22: 42.858 | F22: =D22+(D22*E22/100) -> 42.8574 | G22: =F22-D22 -> 12.8574 | H22: =(G22/F22)*100 -> 30.00042
M23: Free Shipping Calculator | Q23: Inc VAT where applicable
M24: Total Spend | N24: Margin % Sacrifice | O24: Amount | P24: P&P Cost | Q24: No. Unts Req
M25: 1 | N25: 35 | O25: =SUM(M25*(N25/100)) -> 0.35 | P25: 5 | Q25: =SUM(P25/O25) -> 14.28571429
B26: © 2006 - 2024 CritchCorp Computers Ltd

Sheet CostPrices (hidden)
F1: This sheet is being reconstructed. It is intended as a way to keep track of your cost prices and %'s for easy reference. It is may be useful to use it to autofil the calculator. Probably in Version 3. | O1: This may become a drop-down list, but not yet | P1: VAT Rate | Q1: 20 | R1: =1+Q1/100 -> 1.2
A2: Line No. | B2: Supplier/Manufacturer | C2: Short Description | D2: UPC/EAN | E2: SKU | F2: Unit Cost Pice | G2: Unit Cost Price Inc Delivery | H2: Unit Cost plus Cust Shipping | I2: Unit RRP | J2: Unit Weight (Kg) | K2: Unit height (CM) | L2: Unit Width (CM) | M2: Unit Depth (CM) | N2: Shipping Weight (KG) | O2: Shipping box dimentions | P2: Shopify Margin Increase | Q2: Shopify Price Inc VAT | R2: Shopify Fee % | S2: Other Costs | T2: OnBuy Margin Increase | U2: OnBuy Price Inc VAT | V2: OnBuy Category Fee % | W2: OnBuy Boost % | X2: eBay Margin Increase | Y2: eBay Price Inc VAT | Z2: eBay Variable Fee % | AA2: Promoted Listing Simple Fee % | AB2: Woo Margin Increase | AC2: Woo Price Inc VAT | AD2: Woo Payment Processor % | AE2: Amazon Margin Increase | AF2: Amazon Price Inc VAT | AG2: Amazon Category Fee % | AH2: Amazon Ad % | AI2: Vinted Margin Increase | AJ2: Vinted Price Inc VAT | AK2: Vinted category % | AL2: Etsy Margin Increase | AM2: Etsy Price Inc VAT | AN2: Etsy Category % | AO2: FB Mp Margin Increase | AP2: Facebook Marketplace Price Inc VAT | AQ2: FBM Category % | AR2: TikTok Margin Increase | AS2: TikTok Shop Price Inc VAT | AT2: TTS Fee
A3: 1 | Q3: =($G3+($G3*(P3/100)))*$R$1 -> 0 | U3: =($G3+($G3*(T3/100)))*$R$1 -> 0 | Y3: =($G3+($G3*(X3/100)))*$R$1 -> 0 | AC3: =($G3+($G3*(AB3/100)))*$R$1 -> 0 | AF3: =($G3+($G3*(AE3/100)))*$R$1 -> 0 | AJ3: =($G3+($G3*(AI3/100)))*$R$1 -> 0 | AM3: =($G3+($G3*(AL3/100)))*$R$1 -> 0 | AP3: =($G3+($G3*(AO3/100)))*$R$1 -> 0 | AS3: =($G3+($G3*(AR3/100)))*$R$1 -> 0
A4: =A3+1 -> 2 | Q4: 0 | U4: 0 | Y4: 0 | AC4: 0 | AF4: 0 | AJ4: 0 | AM4: 0 | AP4: 0 | AS4: 0
A5: =A4+1 -> 3 | Q5: 0 | U5: 0 | Y5: 0 | AC5: 0 | AF5: 0 | AJ5: 0 | AM5: 0 | AP5: 0 | AS5: 0
A6: 4 | Q6: 0 | U6: 0 | Y6: 0 | AC6: 0 | AF6: 0 | AJ6: 0 | AM6: 0 | AP6: 0 | AS6: 0
A7: 5 | Q7: 0 | U7: 0 | Y7: 0 | AC7: 0 | AF7: 0 | AJ7: 0 | AM7: 0 | AP7: 0 | AS7: 0
A8: 6 | Q8: 0 | U8: 0 | Y8: 0 | AC8: 0 | AF8: 0 | AJ8: 0 | AM8: 0 | AP8: 0 | AS8: 0
A9: 7 | Q9: 0 | U9: 0 | Y9: 0 | AC9: 0 | AF9: 0 | AJ9: 0 | AM9: 0 | AP9: 0 | AS9: 0
A10: 8 | Q10: 0 | U10: 0 | Y10: 0 | AC10: 0 | AF10: 0 | AJ10: 0 | AM10: 0 | AP10: 0 | AS10: 0
A11: 9 | Q11: 0 | U11: 0 | Y11: 0 | AC11: 0 | AF11: 0 | AJ11: 0 | AM11: 0 | AP11: 0 | AS11: 0
A12: 10 | Q12: 0 | U12: 0 | Y12: 0 | AC12: 0 | AF12: 0 | AJ12: 0 | AM12: 0 | AP12: 0 | AS12: 0
A13: 11 | Q13: 0 | U13: 0 | Y13: 0 | AC13: 0 | AF13: 0 | AJ13: 0 | AM13: 0 | AP13: 0 | AS13: 0
A14: 12 | Q14: 0 | U14: 0 | Y14: 0 | AC14: 0 | AF14: 0 | AJ14: 0 | AM14: 0 | AP14: 0 | AS14: 0
A15: 13 | Q15: 0 | U15: 0 | Y15: 0 | AC15: 0 | AF15: 0 | AJ15: 0 | AM15: 0 | AP15: 0 | AS15: 0
A16: 14 | Q16: 0 | U16: 0 | Y16: 0 | AC16: 0 | AF16: 0 | AJ16: 0 | AM16: 0 | AP16: 0 | AS16: 0
A17: 15 | Q17: 0 | U17: 0 | Y17: 0 | AC17: 0 | AF17: 0 | AJ17: 0 | AM17: 0 | AP17: 0 | AS17: 0
A18: 16 | Q18: 0 | U18: 0 | Y18: 0 | AC18: 0 | AF18: 0 | AJ18: 0 | AM18: 0 | AP18: 0 | AS18: 0
A19: 17 | Q19: 0 | U19: 0 | Y19: 0 | AC19: 0 | AF19: 0 | AJ19: 0 | AM19: 0 | AP19: 0 | AS19: 0
A20: 18 | Q20: 0 | U20: 0 | Y20: 0 | AC20: 0 | AF20: 0 | AJ20: 0 | AM20: 0 | AP20: 0 | AS20: 0
A21: 19 | Q21: 0 | U21: 0 | Y21: 0 | AC21: 0 | AF21: 0 | AJ21: 0 | AM21: 0 | AP21: 0 | AS21: 0
A22: 20 | Q22: 0 | U22: 0 | Y22: 0 | AC22: 0 | AF22: 0 | AJ22: 0 | AM22: 0 | AP22: 0 | AS22: 0
A23: 21 | Q23: 0 | U23: 0 | Y23: 0 | AC23: 0 | AF23: 0 | AJ23: 0 | AM23: 0 | AP23: 0 | AS23: 0
A24: 22 | Q24: 0 | U24: 0 | Y24: 0 | AC24: 0 | AF24: 0 | AJ24: 0 | AM24: 0 | AP24: 0 | AS24: 0
A25: 23 | Q25: 0 | U25: 0 | Y25: 0 | AC25: 0 | AF25: 0 | AJ25: 0 | AM25: 0 | AP25: 0 | AS25: 0
A26: 24 | Q26: 0 | U26: 0 | Y26: 0 | AC26: 0 | AF26: 0 | AJ26: 0 | AM26: 0 | AP26: 0 | AS26: 0
A27: 25 | Q27: 0 | U27: 0 | Y27: 0 | AC27: 0 | AF27: 0 | AJ27: 0 | AM27: 0 | AP27: 0 | AS27: 0
A28: 26 | Q28: 0 | U28: 0 | Y28: 0 | AC28: 0 | AF28: 0 | AJ28: 0 | AM28: 0 | AP28: 0 | AS28: 0
A29: 27 | Q29: 0 | U29: 0 | Y29: 0 | AC29: 0 | AF29: 0 | AJ29: 0 | AM29: 0 | AP29: 0 | AS29: 0
A30: 28 | Q30: 0 | U30: 0 | Y30: 0 | AC30: 0 | AF30: 0 | AJ30: 0 | AM30: 0 | AP30: 0 | AS30: 0
A31: 29 | Q31: 0 | U31: 0 | Y31: 0 | AC31: 0 | AF31: 0 | AJ31: 0 | AM31: 0 | AP31: 0 | AS31: 0
Q32: 0 | U32: 0 | Y32: 0 | AC32: 0 | AF32: 0 | AJ32: 0 | AM32: 0 | AP32: 0 | AS32: 0
Q33: 0 | U33: 0 | Y33: 0 | AC33: 0 | AF33: 0 | AJ33: 0 | AM33: 0 | AP33: 0 | AS33: 0
Q34: 0 | U34: 0 | Y34: 0 | AC34: 0 | AF34: 0 | AJ34: 0 | AM34: 0 | AP34: 0 | AS34: 0
Q35: 0 | U35: 0 | Y35: 0 | AC35: 0 | AF35: 0 | AJ35: 0 | AM35: 0 | AP35: 0 | AS35: 0
Q36: 0 | U36: 0 | Y36: 0 | AC36: 0 | AF36: 0 | AJ36: 0 | AM36: 0 | AP36: 0 | AS36: 0
Q37: 0 | U37: 0 | Y37: 0 | AC37: 0 | AF37: 0 | AJ37: 0 | AM37: 0 | AP37: 0 | AS37: 0
Q38: 0 | U38: 0 | Y38: 0 | AC38: 0 | AF38: 0 | AJ38: 0 | AM38: 0 | AP38: 0 | AS38: 0
Q39: 0 | U39: 0 | Y39: 0 | AC39: 0 | AF39: 0 | AJ39: 0 | AM39: 0 | AP39: 0 | AS39: 0
Q40: 0 | U40: 0 | Y40: 0 | AC40: 0 | AF40: 0 | AJ40: 0 | AM40: 0 | AP40: 0 | AS40: 0
Q41: 0 | U41: 0 | Y41: 0 | AC41: 0 | AF41: 0 | AJ41: 0 | AM41: 0 | AP41: 0 | AS41: 0
Q42: 0 | U42: 0 | Y42: 0 | AC42: 0 | AF42: 0 | AJ42: 0 | AM42: 0 | AP42: 0 | AS42: 0
Q43: 0 | U43: 0 | Y43: 0 | AC43: 0 | AF43: 0 | AJ43: 0 | AM43: 0 | AP43: 0 | AS43: 0
Q44: 0 | U44: 0 | Y44: 0 | AC44: 0 | AF44: 0 | AJ44: 0 | AM44: 0 | AP44: 0 | AS44: 0
Q45: 0 | U45: 0 | Y45: 0 | AC45: 0 | AF45: 0 | AJ45: 0 | AM45: 0 | AP45: 0 | AS45: 0
Q46: 0 | U46: 0 | Y46: 0 | AC46: 0 | AF46: 0 | AJ46: 0 | AM46: 0 | AP46: 0 | AS46: 0
Q47: 0 | U47: 0 | Y47: 0 | AC47: 0 | AF47: 0 | AJ47: 0 | AM47: 0 | AP47: 0 | AS47: 0
Q48: 0 | U48: 0 | Y48: 0 | AC48: 0 | AF48: 0 | AJ48: 0 | AM48: 0 | AP48: 0 | AS48: 0
Q49: 0 | U49: 0 | Y49: 0 | AC49: 0 | AF49: 0 | AJ49: 0 | AM49: 0 | AP49: 0 | AS49: 0
Q50: 0 | U50: 0 | Y50: 0 | AC50: 0 | AF50: 0 | AJ50: 0 | AM50: 0 | AP50: 0 | AS50: 0
Q51: 0 | U51: 0 | Y51: 0 | AC51: 0 | AF51: 0 | AJ51: 0 | AM51: 0 | AP51: 0 | AS51: 0
Q52: 0 | U52: 0 | Y52: 0 | AC52: 0 | AF52: 0 | AJ52: 0 | AM52: 0 | AP52: 0 | AS52: 0
Q53: 0 | U53: 0 | Y53: 0 | AC53: 0 | AF53: 0 | AJ53: 0 | AM53: 0 | AP53: 0 | AS53: 0
Q54: 0 | U54: 0 | Y54: 0 | AC54: 0 | AF54: 0 | AJ54: 0 | AM54: 0 | AP54: 0 | AS54: 0
Q55: 0 | U55: 0 | Y55: 0 | AC55: 0 | AF55: 0 | AJ55: 0 | AM55: 0 | AP55: 0 | AS55: 0
Q56: 0 | U56: 0 | Y56: 0 | AC56: 0 | AF56: 0 | AJ56: 0 | AM56: 0 | AP56: 0 | AS56: 0
Q57: 0 | U57: 0 | Y57: 0 | AC57: 0 | AF57: 0 | AJ57: 0 | AM57: 0 | AP57: 0 | AS57: 0
Q58: 0 | U58: 0 | Y58: 0 | AC58: 0 | AF58: 0 | AJ58: 0 | AM58: 0 | AP58: 0 | AS58: 0
Q59: 0 | U59: 0 | Y59: 0 | AC59: 0 | AF59: 0 | AJ59: 0 | AM59: 0 | AP59: 0 | AS59: 0
Q60: 0 | U60: 0 | Y60: 0 | AC60: 0 | AF60: 0 | AJ60: 0 | AM60: 0 | AP60: 0 | AS60: 0
Q61: 0 | U61: 0 | Y61: 0 | AC61: 0 | AF61: 0 | AJ61: 0 | AM61: 0 | AP61: 0 | AS61: 0
Q62: 0 | U62: 0 | Y62: 0 | AC62: 0 | AF62: 0 | AJ62: 0 | AM62: 0 | AP62: 0 | AS62: 0
Q63: 0 | U63: 0 | Y63: 0 | AC63: 0 | AF63: 0 | AJ63: 0 | AM63: 0 | AP63: 0 | AS63: 0
Q64: 0 | U64: 0 | Y64: 0 | AC64: 0 | AF64: 0 | AJ64: 0 | AM64: 0 | AP64: 0 | AS64: 0
Q65: 0 | U65: 0 | Y65: 0 | AC65: 0 | AF65: 0 | AJ65: 0 | AM65: 0 | AP65: 0 | AS65: 0
Q66: 0 | U66: 0 | Y66: 0 | AC66: 0 | AF66: 0 | AJ66: 0 | AM66: 0 | AP66: 0 | AS66: 0
Q67: =($G67+($G67*(P67/100)))*$R$1 -> 0 | U67: =($G67+($G67*(T67/100)))*$R$1 -> 0 | Y67: =($G67+($G67*(X67/100)))*$R$1 -> 0 | AC67: =($G67+($G67*(AB67/100)))*$R$1 -> 0 | AF67: =($G67+($G67*(AE67/100)))*$R$1 -> 0 | AJ67: =($G67+($G67*(AI67/100)))*$R$1 -> 0 | AM67: =($G67+($G67*(AL67/100)))*$R$1 -> 0 | AP67: =($G67+($G67*(AO67/100)))*$R$1 -> 0 | AS67: =($G67+($G67*(AR67/100)))*$R$1 -> 0
Q68: 0 | U68: 0 | Y68: 0 | AC68: 0 | AF68: 0 | AJ68: 0 | AM68: 0 | AP68: 0 | AS68: 0
Q69: 0 | U69: 0 | Y69: 0 | AC69: 0 | AF69: 0 | AJ69: 0 | AM69: 0 | AP69: 0 | AS69: 0
Q70: 0 | U70: 0 | Y70: 0 | AC70: 0 | AF70: 0 | AJ70: 0 | AM70: 0 | AP70: 0 | AS70: 0
Q71: 0 | U71: 0 | Y71: 0 | AC71: 0 | AF71: 0 | AJ71: 0 | AM71: 0 | AP71: 0 | AS71: 0
Q72: 0 | U72: 0 | Y72: 0 | AC72: 0 | AF72: 0 | AJ72: 0 | AM72: 0 | AP72: 0 | AS72: 0
Q73: 0 | U73: 0 | Y73: 0 | AC73: 0 | AF73: 0 | AJ73: 0 | AM73: 0 | AP73: 0 | AS73: 0
Q74: 0 | U74: 0 | Y74: 0 | AC74: 0 | AF74: 0 | AJ74: 0 | AM74: 0 | AP74: 0 | AS74: 0
Q75: 0 | U75: 0 | Y75: 0 | AC75: 0 | AF75: 0 | AJ75: 0 | AM75: 0 | AP75: 0 | AS75: 0
Q76: 0 | U76: 0 | Y76: 0 | AC76: 0 | AF76: 0 | AJ76: 0 | AM76: 0 | AP76: 0 | AS76: 0
Q77: 0 | U77: 0 | Y77: 0 | AC77: 0 | AF77: 0 | AJ77: 0 | AM77: 0 | AP77: 0 | AS77: 0
Q78: 0 | U78: 0 | Y78: 0 | AC78: 0 | AF78: 0 | AJ78: 0 | AM78: 0 | AP78: 0 | AS78: 0
Q79: 0 | U79: 0 | Y79: 0 | AC79: 0 | AF79: 0 | AJ79: 0 | AM79: 0 | AP79: 0 | AS79: 0
Q80: 0 | U80: 0 | Y80: 0 | AC80: 0 | AF80: 0 | AJ80: 0 | AM80: 0 | AP80: 0 | AS80: 0
Q81: 0 | U81: 0 | Y81: 0 | AC81: 0 | AF81: 0 | AJ81: 0 | AM81: 0 | AP81: 0 | AS81: 0
Q82: 0 | U82: 0 | Y82: 0 | AC82: 0 | AF82: 0 | AJ82: 0 | AM82: 0 | AP82: 0 | AS82: 0
Q83: 0 | U83: 0 | Y83: 0 | AC83: 0 | AF83: 0 | AJ83: 0 | AM83: 0 | AP83: 0 | AS83: 0
Q84: 0 | U84: 0 | Y84: 0 | AC84: 0 | AF84: 0 | AJ84: 0 | AM84: 0 | AP84: 0 | AS84: 0
Q85: 0 | U85: 0 | Y85: 0 | AC85: 0 | AF85: 0 | AJ85: 0 | AM85: 0 | AP85: 0 | AS85: 0
Q86: 0 | U86: 0 | Y86: 0 | AC86: 0 | AF86: 0 | AJ86: 0 | AM86: 0 | AP86: 0 | AS86: 0
Q87: 0 | U87: 0 | Y87: 0 | AC87: 0 | AF87: 0 | AJ87: 0 | AM87: 0 | AP87: 0 | AS87: 0
Q88: 0 | U88: 0 | Y88: 0 | AC88: 0 | AF88: 0 | AJ88: 0 | AM88: 0 | AP88: 0 | AS88: 0
Q89: 0 | U89: 0 | Y89: 0 | AC89: 0 | AF89: 0 | AJ89: 0 | AM89: 0 | AP89: 0 | AS89: 0
Q90: 0 | U90: 0 | Y90: 0 | AC90: 0 | AF90: 0 | AJ90: 0 | AM90: 0 | AP90: 0 | AS90: 0
Q91: 0 | U91: 0 | Y91: 0 | AC91: 0 | AF91: 0 | AJ91: 0 | AM91: 0 | AP91: 0 | AS91: 0
Q92: 0 | U92: 0 | Y92: 0 | AC92: 0 | AF92: 0 | AJ92: 0 | AM92: 0 | AP92: 0 | AS92: 0
Q93: 0 | U93: 0 | Y93: 0 | AC93: 0 | AF93: 0 | AJ93: 0 | AM93: 0 | AP93: 0 | AS93: 0
Q94: 0 | U94: 0 | Y94: 0 | AC94: 0 | AF94: 0 | AJ94: 0 | AM94: 0 | AP94: 0 | AS94: 0
Q95: 0 | U95: 0 | Y95: 0 | AC95: 0 | AF95: 0 | AJ95: 0 | AM95: 0 | AP95: 0 | AS95: 0
Q96: 0 | U96: 0 | Y96: 0 | AC96: 0 | AF96: 0 | AJ96: 0 | AM96: 0 | AP96: 0 | AS96: 0
Q97: 0 | U97: 0 | Y97: 0 | AC97: 0 | AF97: 0 | AJ97: 0 | AM97: 0 | AP97: 0 | AS97: 0
Q98: 0 | U98: 0 | Y98: 0 | AC98: 0 | AF98: 0 | AJ98: 0 | AM98: 0 | AP98: 0 | AS98: 0
Q99: 0 | U99: 0 | Y99: 0 | AC99: 0 | AF99: 0 | AJ99: 0 | AM99: 0 | AP99: 0 | AS99: 0
Q100: 0 | U100: 0 | Y100: 0 | AC100: 0 | AF100: 0 | AJ100: 0 | AM100: 0 | AP100: 0 | AS100: 0
Q101: 0 | U101: 0 | Y101: 0 | AC101: 0 | AF101: 0 | AJ101: 0 | AM101: 0 | AP101: 0 | AS101: 0
Q102: 0 | U102: 0 | Y102: 0 | AC102: 0 | AF102: 0 | AJ102: 0 | AM102: 0 | AP102: 0 | AS102: 0
Q103: 0 | U103: 0 | Y103: 0 | AC103: 0 | AF103: 0 | AJ103: 0 | AM103: 0 | AP103: 0 | AS103: 0
Q104: 0 | U104: 0 | Y104: 0 | AC104: 0 | AF104: 0 | AJ104: 0 | AM104: 0 | AP104: 0 | AS104: 0
Q105: 0 | U105: 0 | Y105: 0 | AC105: 0 | AF105: 0 | AJ105: 0 | AM105: 0 | AP105: 0 | AS105: 0
Q106: 0 | U106: 0 | Y106: 0 | AC106: 0 | AF106: 0 | AJ106: 0 | AM106: 0 | AP106: 0 | AS106: 0
Q107: 0 | U107: 0 | Y107: 0 | AC107: 0 | AF107: 0 | AJ107: 0 | AM107: 0 | AP107: 0 | AS107: 0
Q108: 0 | U108: 0 | Y108: 0 | AC108: 0 | AF108: 0 | AJ108: 0 | AM108: 0 | AP108: 0 | AS108: 0
Q109: 0 | U109: 0 | Y109: 0 | AC109: 0 | AF109: 0 | AJ109: 0 | AM109: 0 | AP109: 0 | AS109: 0
Q110: 0 | U110: 0 | Y110: 0 | AC110: 0 | AF110: 0 | AJ110: 0 | AM110: 0 | AP110: 0 | AS110: 0
Q111: 0 | U111: 0 | Y111: 0 | AC111: 0 | AF111: 0 | AJ111: 0 | AM111: 0 | AP111: 0 | AS111: 0
Q112: 0 | U112: 0 | Y112: 0 | AC112: 0 | AF112: 0 | AJ112: 0 | AM112: 0 | AP112: 0 | AS112: 0
Q113: 0 | U113: 0 | Y113: 0 | AC113: 0 | AF113: 0 | AJ113: 0 | AM113: 0 | AP113: 0 | AS113: 0
Q114: 0 | U114: 0 | Y114: 0 | AC114: 0 | AF114: 0 | AJ114: 0 | AM114: 0 | AP114: 0 | AS114: 0
Q115: 0 | U115: 0 | Y115: 0 | AC115: 0 | AF115: 0 | AJ115: 0 | AM115: 0 | AP115: 0 | AS115: 0
Q116: 0 | U116: 0 | Y116: 0 | AC116: 0 | AF116: 0 | AJ116: 0 | AM116: 0 | AP116: 0 | AS116: 0
Q117: 0 | U117: 0 | Y117: 0 | AC117: 0 | AF117: 0 | AJ117: 0 | AM117: 0 | AP117: 0 | AS117: 0
Q118: 0 | U118: 0 | Y118: 0 | AC118: 0 | AF118: 0 | AJ118: 0 | AM118: 0 | AP118: 0 | AS118: 0
Q119: 0 | U119: 0 | Y119: 0 | AC119: 0 | AF119: 0 | AJ119: 0 | AM119: 0 | AP119: 0 | AS119: 0
Q120: 0 | U120: 0 | Y120: 0 | AC120: 0 | AF120: 0 | AJ120: 0 | AM120: 0 | AP120: 0 | AS120: 0
Q121: 0 | U121: 0 | Y121: 0 | AC121: 0 | AF121: 0 | AJ121: 0 | AM121: 0 | AP121: 0 | AS121: 0
Q122: 0 | U122: 0 | Y122: 0 | AC122: 0 | AF122: 0 | AJ122: 0 | AM122: 0 | AP122: 0 | AS122: 0
Q123: 0 | U123: 0 | Y123: 0 | AC123: 0 | AF123: 0 | AJ123: 0 | AM123: 0 | AP123: 0 | AS123: 0
Q124: 0 | U124: 0 | Y124: 0 | AC124: 0 | AF124: 0 | AJ124: 0 | AM124: 0 | AP124: 0 | AS124: 0
Q125: 0 | U125: 0 | Y125: 0 | AC125: 0 | AF125: 0 | AJ125: 0 | AM125: 0 | AP125: 0 | AS125: 0
Q126: 0 | U126: 0 | Y126: 0 | AC126: 0 | AF126: 0 | AJ126: 0 | AM126: 0 | AP126: 0 | AS126: 0
Q127: 0 | U127: 0 | Y127: 0 | AC127: 0 | AF127: 0 | AJ127: 0 | AM127: 0 | AP127: 0 | AS127: 0
Q128: 0 | U128: 0 | Y128: 0 | AC128: 0 | AF128: 0 | AJ128: 0 | AM128: 0 | AP128: 0 | AS128: 0
Q129: 0 | U129: 0 | Y129: 0 | AC129: 0 | AF129: 0 | AJ129: 0 | AM129: 0 | AP129: 0 | AS129: 0
Q130: 0 | U130: 0 | Y130: 0 | AC130: 0 | AF130: 0 | AJ130: 0 | AM130: 0 | AP130: 0 | AS130: 0
Q131: =($G131+($G131*(P131/100)))*$R$1 -> 0 | U131: =($G131+($G131*(T131/100)))*$R$1 -> 0 | Y131: =($G131+($G131*(X131/100)))*$R$1 -> 0 | AC131: =($G131+($G131*(AB131/100)))*$R$1 -> 0 | AF131: =($G131+($G131*(AE131/100)))*$R$1 -> 0 | AJ131: =($G131+($G131*(AI131/100)))*$R$1 -> 0 | AM131: =($G131+($G131*(AL131/100)))*$R$1 -> 0 | AP131: =($G131+($G131*(AO131/100)))*$R$1 -> 0 | AS131: =($G131+($G131*(AR131/100)))*$R$1 -> 0
Q132: 0 | U132: 0 | Y132: 0 | AC132: 0 | AF132: 0 | AJ132: 0 | AM132: 0 | AP132: 0 | AS132: 0
Q133: 0 | U133: 0 | Y133: 0 | AC133: 0 | AF133: 0 | AJ133: 0 | AM133: 0 | AP133: 0 | AS133: 0
Q134: 0 | U134: 0 | Y134: 0 | AC134: 0 | AF134: 0 | AJ134: 0 | AM134: 0 | AP134: 0 | AS134: 0
Q135: 0 | U135: 0 | Y135: 0 | AC135: 0 | AF135: 0 | AJ135: 0 | AM135: 0 | AP135: 0 | AS135: 0
Q136: 0 | U136: 0 | Y136: 0 | AC136: 0 | AF136: 0 | AJ136: 0 | AM136: 0 | AP136: 0 | AS136: 0
Q137: 0 | U137: 0 | Y137: 0 | AC137: 0 | AF137: 0 | AJ137: 0 | AM137: 0 | AP137: 0 | AS137: 0
Q138: 0 | U138: 0 | Y138: 0 | AC138: 0 | AF138: 0 | AJ138: 0 | AM138: 0 | AP138: 0 | AS138: 0
Q139: 0 | U139: 0 | Y139: 0 | AC139: 0 | AF139: 0 | AJ139: 0 | AM139: 0 | AP139: 0 | AS139: 0
Q140: 0 | U140: 0 | Y140: 0 | AC140: 0 | AF140: 0 | AJ140: 0 | AM140: 0 | AP140: 0 | AS140: 0
Q141: 0 | U141: 0 | Y141: 0 | AC141: 0 | AF141: 0 | AJ141: 0 | AM141: 0 | AP141: 0 | AS141: 0
Q142: 0 | U142: 0 | Y142: 0 | AC142: 0 | AF142: 0 | AJ142: 0 | AM142: 0 | AP142: 0 | AS142: 0
Q143: 0 | U143: 0 | Y143: 0 | AC143: 0 | AF143: 0 | AJ143: 0 | AM143: 0 | AP143: 0 | AS143: 0
Q144: 0 | U144: 0 | Y144: 0 | AC144: 0 | AF144: 0 | AJ144: 0 | AM144: 0 | AP144: 0 | AS144: 0
Q145: 0 | U145: 0 | Y145: 0 | AC145: 0 | AF145: 0 | AJ145: 0 | AM145: 0 | AP145: 0 | AS145: 0
Q146: 0 | U146: 0 | Y146: 0 | AC146: 0 | AF146: 0 | AJ146: 0 | AM146: 0 | AP146: 0 | AS146: 0
Q147: 0 | U147: 0 | Y147: 0 | AC147: 0 | AF147: 0 | AJ147: 0 | AM147: 0 | AP147: 0 | AS147: 0
Q148: 0 | U148: 0 | Y148: 0 | AC148: 0 | AF148: 0 | AJ148: 0 | AM148: 0 | AP148: 0 | AS148: 0
Q149: 0 | U149: 0 | Y149: 0 | AC149: 0 | AF149: 0 | AJ149: 0 | AM149: 0 | AP149: 0 | AS149: 0
Q150: 0 | U150: 0 | Y150: 0 | AC150: 0 | AF150: 0 | AJ150: 0 | AM150: 0 | AP150: 0 | AS150: 0
Q151: 0 | U151: 0 | Y151: 0 | AC151: 0 | AF151: 0 | AJ151: 0 | AM151: 0 | AP151: 0 | AS151: 0
Q152: 0 | U152: 0 | Y152: 0 | AC152: 0 | AF152: 0 | AJ152: 0 | AM152: 0 | AP152: 0 | AS152: 0
Q153: 0 | U153: 0 | Y153: 0 | AC153: 0 | AF153: 0 | AJ153: 0 | AM153: 0 | AP153: 0 | AS153: 0
Q154: 0 | U154: 0 | Y154: 0 | AC154: 0 | AF154: 0 | AJ154: 0 | AM154: 0 | AP154: 0 | AS154: 0
Q155: 0 | U155: 0 | Y155: 0 | AC155: 0 | AF155: 0 | AJ155: 0 | AM155: 0 | AP155: 0 | AS155: 0
Q156: 0 | U156: 0 | Y156: 0 | AC156: 0 | AF156: 0 | AJ156: 0 | AM156: 0 | AP156: 0 | AS156: 0
Q157: 0 | U157: 0 | Y157: 0 | AC157: 0 | AF157: 0 | AJ157: 0 | AM157: 0 | AP157: 0 | AS157: 0
Q158: 0 | U158: 0 | Y158: 0 | AC158: 0 | AF158: 0 | AJ158: 0 | AM158: 0 | AP158: 0 | AS158: 0
Q159: 0 | U159: 0 | Y159: 0 | AC159: 0 | AF159: 0 | AJ159: 0 | AM159: 0 | AP159: 0 | AS159: 0
Q160: 0 | U160: 0 | Y160: 0 | AC160: 0 | AF160: 0 | AJ160: 0 | AM160: 0 | AP160: 0 | AS160: 0
Q161: 0 | U161: 0 | Y161: 0 | AC161: 0 | AF161: 0 | AJ161: 0 | AM161: 0 | AP161: 0 | AS161: 0
Q162: 0 | U162: 0 | Y162: 0 | AC162: 0 | AF162: 0 | AJ162: 0 | AM162: 0 | AP162: 0 | AS162: 0
Q163: 0 | U163: 0 | Y163: 0 | AC163: 0 | AF163: 0 | AJ163: 0 | AM163: 0 | AP163: 0 | AS163: 0
Q164: 0 | U164: 0 | Y164: 0 | AC164: 0 | AF164: 0 | AJ164: 0 | AM164: 0 | AP164: 0 | AS164: 0
Q165: 0 | U165: 0 | Y165: 0 | AC165: 0 | AF165: 0 | AJ165: 0 | AM165: 0 | AP165: 0 | AS165: 0
Q166: 0 | U166: 0 | Y166: 0 | AC166: 0 | AF166: 0 | AJ166: 0 | AM166: 0 | AP166: 0 | AS166: 0
Q167: 0 | U167: 0 | Y167: 0 | AC167: 0 | AF167: 0 | AJ167: 0 | AM167: 0 | AP167: 0 | AS167: 0
Q168: 0 | U168: 0 | Y168: 0 | AC168: 0 | AF168: 0 | AJ168: 0 | AM168: 0 | AP168: 0 | AS168: 0
Q169: 0 | U169: 0 | Y169: 0 | AC169: 0 | AF169: 0 | AJ169: 0 | AM169: 0 | AP169: 0 | AS169: 0
Q170: 0 | U170: 0 | Y170: 0 | AC170: 0 | AF170: 0 | AJ170: 0 | AM170: 0 | AP170: 0 | AS170: 0
Q171: 0 | U171: 0 | Y171: 0 | AC171: 0 | AF171: 0 | AJ171: 0 | AM171: 0 | AP171: 0 | AS171: 0
Q172: 0 | U172: 0 | Y172: 0 | AC172: 0 | AF172: 0 | AJ172: 0 | AM172: 0 | AP172: 0 | AS172: 0
Q173: 0 | U173: 0 | Y173: 0 | AC173: 0 | AF173: 0 | AJ173: 0 | AM173: 0 | AP173: 0 | AS173: 0
Q174: 0 | U174: 0 | Y174: 0 | AC174: 0 | AF174: 0 | AJ174: 0 | AM174: 0 | AP174: 0 | AS174: 0
Q175: 0 | U175: 0 | Y175: 0 | AC175: 0 | AF175: 0 | AJ175: 0 | AM175: 0 | AP175: 0 | AS175: 0
Q176: 0 | U176: 0 | Y176: 0 | AC176: 0 | AF176: 0 | AJ176: 0 | AM176: 0 | AP176: 0 | AS176: 0
Q177: 0 | U177: 0 | Y177: 0 | AC177: 0 | AF177: 0 | AJ177: 0 | AM177: 0 | AP177: 0 | AS177: 0
Q178: 0 | U178: 0 | Y178: 0 | AC178: 0 | AF178: 0 | AJ178: 0 | AM178: 0 | AP178: 0 | AS178: 0
Q179: 0 | U179: 0 | Y179: 0 | AC179: 0 | AF179: 0 | AJ179: 0 | AM179: 0 | AP179: 0 | AS179: 0
Q180: 0 | U180: 0 | Y180: 0 | AC180: 0 | AF180: 0 | AJ180: 0 | AM180: 0 | AP180: 0 | AS180: 0
Q181: 0 | U181: 0 | Y181: 0 | AC181: 0 | AF181: 0 | AJ181: 0 | AM181: 0 | AP181: 0 | AS181: 0
Q182: 0 | U182: 0 | Y182: 0 | AC182: 0 | AF182: 0 | AJ182: 0 | AM182: 0 | AP182: 0 | AS182: 0
Q183: 0 | U183: 0 | Y183: 0 | AC183: 0 | AF183: 0 | AJ183: 0 | AM183: 0 | AP183: 0 | AS183: 0
Q184: 0 | U184: 0 | Y184: 0 | AC184: 0 | AF184: 0 | AJ184: 0 | AM184: 0 | AP184: 0 | AS184: 0
Q185: 0 | U185: 0 | Y185: 0 | AC185: 0 | AF185: 0 | AJ185: 0 | AM185: 0 | AP185: 0 | AS185: 0
Q186: 0 | U186: 0 | Y186: 0 | AC186: 0 | AF186: 0 | AJ186: 0 | AM186: 0 | AP186: 0 | AS186: 0
Q187: 0 | U187: 0 | Y187: 0 | AC187: 0 | AF187: 0 | AJ187: 0 | AM187: 0 | AP187: 0 | AS187: 0
Q188: 0 | U188: 0 | Y188: 0 | AC188: 0 | AF188: 0 | AJ188: 0 | AM188: 0 | AP188: 0 | AS188: 0
Q189: 0 | U189: 0 | Y189: 0 | AC189: 0 | AF189: 0 | AJ189: 0 | AM189: 0 | AP189: 0 | AS189: 0
Q190: 0 | U190: 0 | Y190: 0 | AC190: 0 | AF190: 0 | AJ190: 0 | AM190: 0 | AP190: 0 | AS190: 0
Q191: 0 | U191: 0 | Y191: 0 | AC191: 0 | AF191: 0 | AJ191: 0 | AM191: 0 | AP191: 0 | AS191: 0
Q192: 0 | U192: 0 | Y192: 0 | AC192: 0 | AF192: 0 | AJ192: 0 | AM192: 0 | AP192: 0 | AS192: 0
Q193: 0 | U193: 0 | Y193: 0 | AC193: 0 | AF193: 0 | AJ193: 0 | AM193: 0 | AP193: 0 | AS193: 0
Q194: 0 | U194: 0 | Y194: 0 | AC194: 0 | AF194: 0 | AJ194: 0 | AM194: 0 | AP194: 0 | AS194: 0
Q195: =($G195+($G195*(P195/100)))*$R$1 -> 0 | U195: =($G195+($G195*(T195/100)))*$R$1 -> 0 | Y195: =($G195+($G195*(X195/100)))*$R$1 -> 0 | AC195: =($G195+($G195*(AB195/100)))*$R$1 -> 0 | AF195: =($G195+($G195*(AE195/100)))*$R$1 -> 0 | AJ195: =($G195+($G195*(AI195/100)))*$R$1 -> 0 | AM195: =($G195+($G195*(AL195/100)))*$R$1 -> 0 | AP195: =($G195+($G195*(AO195/100)))*$R$1 -> 0 | AS195: =($G195+($G195*(AR195/100)))*$R$1 -> 0
Q196: 0 | U196: 0 | Y196: 0 | AC196: 0 | AF196: 0 | AJ196: 0 | AM196: 0 | AP196: 0 | AS196: 0
Q197: 0 | U197: 0 | Y197: 0 | AC197: 0 | AF197: 0 | AJ197: 0 | AM197: 0 | AP197: 0 | AS197: 0
Q198: 0 | U198: 0 | Y198: 0 | AC198: 0 | AF198: 0 | AJ198: 0 | AM198: 0 | AP198: 0 | AS198: 0
Q199: 0 | U199: 0 | Y199: 0 | AC199: 0 | AF199: 0 | AJ199: 0 | AM199: 0 | AP199: 0 | AS199: 0
Q200: 0 | U200: 0 | Y200: 0 | AC200: 0 | AF200: 0 | AJ200: 0 | AM200: 0 | AP200: 0 | AS200: 0
... 925 more rows

Sheet eBay Fees (hidden)
A1: These are the market place fee. They are for reference only and up-to-date as of 20/07/2024. There is no gurentee of their correctness and are copied form the relevant website. You can usually tell the fee you are paying by looking at your listing.
A5: Final value fees by category - eBay | E5: Final Value Fees for Amazon | M5: OnBuy Fees from August 2024 | Q5: Etsy | T5: TikTok Shop | W5: Vinted | Y5: FaceBook Market Place
A6: Category | B6: Category ID | C6: Final value fee % + 30p per order | E6: Referral Fee Schedule | M6: Fee Category | N6: Sales Fees | O6: Minimum Fee per Product | Q6: Fee Category | R6: Fee % | T6: Fee Category | U6: Fee % | W6: Price List | Y6: No Charge from Facebook if you ise Shopify. The same charges as Shopify will apply
A7: Antiques | B7: #20081 | C7: 0.109 | E7: Fee categories | M7: Arts, Crafts & Sewing | N7: 0.15 | O7: 0.25 | Q7: All | R7: 0.06 | T7: All | U7: 0.095
A8: Art, except subcategories below: | B8: #550 | C8: 0.109 | E8: Referral fee (including the digital services tax) | M8: Baby & Toddler | N8: 8.00% of the total item price up to the value of £10.00 | O8: 0.25 | W8: Last updated: 02-07-2024 | Y8: Otherwise it is up to 3.49%
A9: Art NFTs | B9: #262051 | C9: 0.05 | E9: Per-item minimum referral fee | N9: 15.00% on any portion of the total item price greater than £10.00
M10: Beer, Wine & Spirits | N10: 0.1 | O10: 0.25 | W10: This Price List indicates the fees payable by Users and/or how they are calculated when using Vinted.
A11: Baby | B11: #2984 | C11: 0.109 | E11: Amazon Device Accessories | M11: Books | N11: 0.15 | O11: 0.25
A12: Books, Comics & Magazines | B12: #267 | C12: 0.099 | E12: 0.459 | M12: Business, Office & Industrial Supplies | N12: 0.15 | O12: 0.25 | W12: Fees for Buyer Protection Services
A13: Business, Office & Industrial | B13: #12576 | C13: 0.119 | E13: 0.25 | M13: Car & Automotive Parts | N13: 15.00% of the total item price up to the value of £45.00 | O13: 0.25
A14: Cameras & Photography, except subcategories below: | B14: #625 | C14: 0.099 | E14: Automotive and Powersports | N14: 9.00% on any portion of the total item price greater than £45.00 | W14: Buyer Protection is provided by VINTED in every purchase made with the “Buy now” button, where the Buyer will benefit from the Vinted’s Refund Policy, safe payments and Vinted’s customer support (please see our Terms and Conditions for full information). Accordingly for such a service, a Buyer Protection Fee will be charged to the Buyer automatically for Buyer Protection Services and will always be shown at a checkout before completion of the order.
A15: Camcorders | B15: #11724 | C15: 6.9% for the portion of the total amount of the sale up to £1,000 (calculated per item) | E15: • 15.3% for the portion of the total sales price up to £45.00 | M15: Clothing, Shoes & Accessories | N15: 0.15 | O15: 0.25
A16: Digital Cameras | B16: #31388 | C16: 3% for the portion of the total amount of the sale above £1,000 | E16: • 9.18% for any portion of the total sales price greater than £45.00 | M16: Consumer Electronics | N16: 0.07 | O16: 0.25 | W16: Buyer Protection Fee consists depends on the order’s price.
A17: Film Photography | B17: #69323 | E17: 0.25 | M17: DIY & Tools | N17: 0.13 | O17: 0.25
A18: Lenses & Filters | B18: #78997 | E18: Baby Products | M18: Electronic Accessories | N18: 15.00% of the total item price up to the value of £100.00 | O18: 0.25 | W18: For orders (including bundles) priced less than £500, the formula is:
E19: • 8.16% for products with a total sales price up to £10.00 | N19: 8.00% on any portion of the total item price greater than £100.00
A20: Clothes, Shoes & Accessories, except subcategories below: | B20: #11450 | C20: 0.119 | E20: • 15.3% for products with a total sales price greater than £10.00 | M20: Food & Drink | N20: 8.00% of the total item price up to the value of £10.00 | O20: 0.25 | W20: A fixed amount: a range of £0.3 to £0.8 and;
A21: Women's Bags & Handbags | B21: #169291 | C21: 12.9% for the portion of the total amount of the sale up to £800 (calculated per item) | E21: 0.25 | N21: 15.00% on any portion of the total item price greater than £10.00 | W21: A variable amount: a range of 3% to 8% of the purchase price agreed between you and the seller, regardless of postage costs
C22: 7% for the portion of the total amount of the sale above £800 | E22: Backpacks and Handbags | M22: Furniture | N22: 15.00% of the total item price up to the value of £175.00 | O22: 0.25
E23: 0.153 | N23: 10.00% on any portion of the total item price greater than £175.00 | W23: For orders (including bundles) priced £500 or more, the formula is:
A24: Men > Men's Shoes > Trainers | B24: #15709 | C24: 0.119 | E24: 0.25 | M24: Games Consoles | N24: 0.08 | O24: 0.25
A25: Women > Women's Shoes > Trainers | E25: Beauty, Health, and Personal Care* | M25: Health & Beauty | N25: 8.00% of the total item price up to the value of £10.00 | O25: 0.25 | W25: 3% of the item's price (including the value-added tax (VAT) applied to the item’s price)
B26: #95672 | E26: • 8.16% for products with a total sales price up to £10.00 | N26: 15.00% on any portion of the total item price greater than £10.00
E27: • 15.3% for products with a total sales price greater than £10.00 | M27: Jewellery | N27: 20.00% of the total item price up to the value of £225.00 | O27: 0.25 | W27: Fees for Additional Services
C28: 7% if item selling price* is £100 or more | E28: 0.25 | N28: 5.00% on any portion of the total item price greater than £225.00
E29: Beer, Wine, and Spirits | M29: Large Appliances | N29: 0.07 | O29: 0.25 | W29: 1 Fees payable by Buyers
C30: *The item selling price excludes postage, and any other additional fees or taxes | E30: 0.102 | M30: Music, VHS, DVD | N30: 0.15 | O30: 0.25
A31: Coins | B31: #11116 | C31: 0.109 | E31: 0.25 | M31: Musical Instruments & DJ | N31: 0.12 | O31: 0.25 | W31: 1.1 Item Verification Service
A32: Collectables, except subcategories below: | B32: #1 | C32: 0.109 | E32: Books | M32: Pet Supplies | N32: 0.15 | O32: 0.25
A33: Emerging NFTs | B33: #262050 | C33: 0.05 | E33: • 15.3% | M33: Power Tools | N33: 0.13 | O33: 0.25 | W33: This is an optional Additional service which the Buyer can choose to purchase when buying an item on Vinted. The service fee for any item is £10, and the Buyers will see it on the item page. The fee consists of a verification service fee and shipping costs from the Seller to the warehouse. For more information about this service please see our Terms and Conditions and the Help Center here.
A34: Non-Sport Trading Card NFTs | B34: #262052 | E34: • And a closing fee of £0.50 per item sold | M34: Small Appliances | N34: 0.15 | O34: 0.25
E35: Not applicable | M35: Software | N35: 0.15 | O35: 0.25 | W35: 2 Fees payable by Sellers
A36: Computers, Tablets & Networking, except subcategories below: | B36: #58058 | C36: 0.099 | E36: Business, Industrial, and Scientific Supplies | M36: Sports & Outdoors | N36: 0.15 | O36: 0.25
A37: Desktops & All-In-Ones | B37: #171957 | C37: 6.9% for the portion of the total amount of the sale up to £1,000 (calculated per item) | E37: 0.153 | M37: Toys & Games | N37: 0.15 | O37: 0.25 | W37: Sellers can improve the visibility of items by opting for the following services:
A38: Drives, Storage & Blank Media | B38: #165 | C38: 3% for the portion of the total amount of the sale above £1,000 | E38: 0.25 | M38: Video Games | N38: 0.15 | O38: 0.25
A39: Enterprise Networking, Servers | B39: #175698 | E39: Compact Appliances | M39: Watches | N39: 15.00% of the total item price up to the value of £225.00 | O39: 0.25 | W39: 2.1 Bumping Listed Items
A40: Tablets & eBook Readers | B40: #171485 | E40: 0.153 | N40: 5.00% on any portion of the total item price greater than £225.00
A41: Laptops & Netbooks | B41: #175672 | E41: 0.25 | M41: Everything Else | N41: 0.15 | O41: 0.25 | W41: The Fee for Bumping Listed Items will vary depending on the chosen duration and item price. Any applicable VAT charged will be included in the price shown at a checkout. Vinted reserves the right to change the amount of the Item Bump Fee if the price of the item is changed after purchasing the Item Bumping service. The duration of the Item Bump may last for 3 or 7 calendar days. The selected Bump duration and respective applicable fee will be shown to you at the time of payment. You will receive an email with a purchase confirmation to your registered email as well.
A42: Printers, Scanners & Supplies | B42: #171961 | E42: Clothing and Accessories | M42: *All fees are subject to VAT where applicable
E43: • For Prime selection with a total price above £40: 15.3% for products with a total price greater than £15 for the portion of the total price up to £40, and 7.14% for any portion of the total price greater than £40. | W43: For more information about this service please see our Terms and Conditions and the Help Center here.
A44: Crafts | B44: #14339 | C44: 0.129 | E44: • For any selection with a total price up to £15: 8.16%
A45: Dolls & Bears | B45: #237 | C45: 0.109 | E45: • For any selection with a total price greater than £15: 15.3% | W45: 2.2 Wardrobe Spotlight
A46: Event Tickets | B46: #1305 | C46: 0.129 | E46: 0.25
A47: Films & TV, except subcategories below: | B47: #11232 | C47: 0.099 | E47: Commercial Electrical and Energy Supplies | W47: The applicable fee and Wardrobe Spotlight duration will be shown to you at checkout and you will receive an email with a purchase confirmation to your registered email.
A48: Film NFTs | B48: #262053 | C48: 0.05 | E48: 0.1224
E49: 0.25 | W49: For more information about this service please see our Terms and Conditions and the Help Center here.
A50: Garden & Patio | B50: #159912 | C50: 0.109 | E50: Computers
A51: Health & Beauty, except subcategories below: | B51: #26395 | C51: 0.109 | E51: 0.0714 | W51: 2.3 Collections
A52: Hair Extensions & Wigs | B52: #182101 | C52: 0.119 | E52: 0.25
E53: Consumer Electronics | W53: The Fee for using the Collections is £8.95 (VAT included), £10.95 (VAT included) or £12.95 (VAT included), depending on the number of collections you choose. The applicable fee and duration will be shown to you in the purchase flow and at check out and you will receive an email with a purchase confirmation to your registered email.
A54: Electronic Smoking, Parts & Accessories | B54: #183497 | C54: 0.129 | E54: 0.0714
E55: 0.25 | W55: For more information about this service please see our Terms and Conditions and the Help Center here.
A56: Holidays & Travel | B56: #3252 | C56: 7.9% for the portion of the total amount of the sale up to £650 (calculated per item) | E56: Cycling Accessories
C57: 3% for the portion of the total amount of the sale above £650 | E57: 0.0816
E58: 0.25
A59: Home, Furniture & DIY, except subcategories below: | B59: #11700 | C59: 11.9% for the portion of the total amount of the sale up to £500 (calculated per item) | E59: Electronic Accessories
C60: 7.9% for the portion of the total amount of the sale above £500 | E60: • 15.3% for the portion of the total sales price up to ₤100.00
E61: • 8.16% for any portion of the total sales price greater than ₤100.00
A62: Appliances | B62: #20710 | C62: 6.9% for the portion of the total amount of the sale up to £400 (calculated per item) | E62: 0.25
A63: DIY Tools & Workshop Equipment | B63: #631 | C63: 3% for the portion of the total amount of the sale above £400 | E63: Eyewear
E64: 0.153
A65: Power Strips & Surge Protectors | B65: #67779 | C65: 9.9% for the portion of the total amount of the sale up to £250 (calculated per item) | E65: 0.25
C66: 7.9% for the portion of the total amount of the sale above £250 | E66: Footwear
E67: 0.153
A68: Furniture | B68: #3197 | C68: 10.9% for the portion of the total amount of the sale up to £500 (calculated per item) | E68: 0.25
A69: Bath | B69: #26677 | C69: 7.9% for the portion of the total amount of the sale above £500 and up to £1,000 (calculated per item) | E69: Full-Size Appliances
A70: Other Home Plumbing & Fixtures | B70: #3191 | C70: 3% for the portion of the total amount of the sale above £1,000 | E70: 0.0714
E71: 0.25
A72: Jewellery & Watches, except subcategories below: | B72: #281 | C72: 12.9% for the portion of the total amount of the sale up to £450 (calculated per item) | E72: Furniture
C73: 2% for the portion of the total amount of the sale above £450 | E73: • 15.3% for the portion of the total sales price up to £175.00
E74: • 10.2% for any portion of the total sales price greater than £175.00
A75: Watches, Parts & Accessories | B75: #260324 | C75: 12.9% for the portion of the total amount of the sale up to £750 (calculated per item) | E75: 0.25
C76: 3% for the portion of the total amount of the sale above £750 | E76: Grocery and Gourmet
E77: • 8.16% for products with a total sales price up to £10.00
A78: Mobile Phones & Communication, except subcategories below: | B78: #15032 | C78: 0.099 | E78: • 15.3% for products with a total sales price greater than £10.00
A79: Mobile & Smart Phones | B79: #9355 | C79: 6.9% for the portion of the total amount of the sale up to £1,000 (calculated per item) | E79: Not applicable
C80: 3% for the portion of the total amount of the sale above £1,000 | E80: Handmade
E81: 0.1224
A82: Music, except subcategories below: | B82: #11233 | C82: 0.099 | E82: 0.25
A83: Music NFTs | B83: #262054 | C83: 0.05 | E83: Home and Kitchen
E84: 0.153
A85: Musical Instruments & DJ Equipment | B85: #619 | C85: 0.109 | E85: 0.25
A86: Pet Supplies | B86: #1281 | C86: 0.129 | E86: Jewelry
A87: Pottery, Ceramics & Glass | B87: #870 | C87: 0.109 | E87: • 20.4% for the portion of the total sales price up to £225.00
A88: Sound & Vision, except subcategories below: | B88: #293 | C88: 0.099 | E88: • 5.1% for any portion of the total sales price greater than £225.00
A89: DVD, Blu-ray & Home Cinema | B89: #32852 | C89: 6.9% for the portion of the total amount of the sale up to £1,000 (calculated per item) | E89: 0.25
A90: Headphones | B90: #112529 | C90: 3% for the portion of the total amount of the sale above £1,000 | E90: Lawn and Garden
A91: Home Audio & HiFi Separates | B91: #14969 | E91: 0.153
A92: Televisions | B92: #11071 | E92: 0.25
E93: Luggage
A94: Sporting Goods | B94: #888 | C94: 0.109 | E94: 0.153
A95: Sports Memorabilia, except subcategories below: | B95: #64482 | C95: 0.109 | E95: 0.25
A96: Sport Trading Card NFTs | B96: #262055 | C96: 0.05 | E96: Mattresses
E97: 0.153
A98: Stamps | B98: #260 | C98: 0.109 | E98: 0.25
A99: Toys & Games, except subcategories below: | B99: #220 | C99: 0.109 | E99: Music, Video, and DVD
A100: CCG NFTs | B100: #262056 | C100: 0.05 | E100: • 15.3%
E101: • And a closing fee of £0.50 per item sold
A102: Tents | B102: #117213 | C102: 10.9% for the portion of the total amount of the sale up to £250 (calculated per item) | E102: Not applicable
C103: 7.9% for the portion of the total amount of the sale above £250 | E103: Musical Instruments and AV Production
E104: 0.1224
A105: Vehicle Parts & Accessories, except subcategories below: | B105: #131090 | C105: 0.089 | E105: 0.25
A106: Tyres | B106: #179680 | C106: 7.9% for the portion of the total amount of the sale up to £250 (calculated per item) | E106: Office Products
A107: Tyres & Tubes | B107: #124313 | C107: 3% for the portion of the total amount of the sale above £250 | E107: 0.153
E108: 0.25
A109: GPS & Sat Nav Devices | B109: #139835 | C109: 6.9% for the portion of the total amount of the sale up to £400 (calculated per item) | E109: Pet Products
A110: Power Tools & Equipment | B110: #35000 | C110: 3% for the portion of the total amount of the sale above £400 | E110: 0.153
E111: 0.25
A112: Video Games & Consoles, except subcategories below: | B112: #1249 | C112: 0.099 | E112: Software
A113: Video Game Consoles | B113: #139971 | C113: 6.9% for the portion of the total amount of the sale up to £400 (calculated per item) | E113: • 15.3%
C114: 2% for the portion of the total amount of the sale above £400 | E114: • And a closing fee of £0.50 per item sold
E115: Not applicable
A116: Wholesale & Job Lots | B116: #40005 | C116: 0.129 | E116: Sports and Outdoors
A117: Everything Else, except subcategories below: | B117: #99 | C117: 0.129 | E117: 0.153
A118: Memorials & Funerals | B118: #88739 | C118: 0.119 | E118: 0.25
E119: Tyres
E120: 0.0714
E121: 0.25
E122: Tools and Home Improvement
E123: 0.1326
E124: 0.25
E125: Toys and Games
E126: 0.153
E127: 0.25
E128: Video Games - Games and Accessories
E129: • 15.3%
E130: • And a closing fee of £0.50 per item sold
E131: Not applicable
E132: Video Game Consoles
E133: • 8.16%
E134: • And a closing fee of £0.50 per item sold
E135: Not applicable
E136: Watches
E137: • 15.3% for the portion of the total sales price up to £225.00
E138: • 5.1% for any portion of the total sales price greater than £225.00
E139: 0.25
E140: Everything else
E141: 0.153
E142: 0.25
